[Event "Titled Tuesday Blitz April 26 Early 2022"]
[White "Sarkar, Justin"]
[Black "Harikrishna, Pentala"]
[WhiteFideId "2010011"]
[BlackFideId "5007003"]
[WhiteElo "2038"]
[BlackElo "2574"]
[Result "0-1"]
[Round "01"]
[TimeControl "180+1"]
[Date "2022.04.26"]
[WhiteClock "0:00:02"]
[BlackClock "0:01:11"]

1. e4 {[%clk 0:02:58]}  e5 {[%clk 0:02:59]} 2. Nc3 {[%clk 0:02:54]}  Nf6 {[%clk 0:02:59]} 3. Bc4 {[%clk 0:02:52]}  Nc6 {[%clk 0:02:59]} 4. d3 {[%clk 0:02:51]}  Na5 {[%clk 0:02:50]} 5. Nge2 {[%clk 0:02:45]}  Nxc4 {[%clk 0:02:48]} 6. dxc4 {[%clk 0:02:46]}  Bb4 {[%clk 0:02:46]} 7. O-O {[%clk 0:02:44]}  h6 {[%clk 0:02:44]} 8. a3 {[%clk 0:02:40]}  Bxc3 {[%clk 0:02:44]} 9. Nxc3 {[%clk 0:02:40]}  d6 {[%clk 0:02:45]} 10. f3 {[%clk 0:02:32]}  O-O {[%clk 0:02:43]} 11. Be3 {[%clk 0:02:29]}  Be6 {[%clk 0:02:40]} 12. b3 {[%clk 0:02:21]}  b6 {[%clk 0:02:39]} 13. a4 {[%clk 0:02:13]}  a5 {[%clk 0:02:38]} 14. Qd2 {[%clk 0:02:09]}  Kh7 {[%clk 0:02:38]} 15. Rad1 {[%clk 0:02:03]}  Nd7 {[%clk 0:02:38]} 16. Nd5 {[%clk 0:01:55]}  f5 {[%clk 0:02:33]} 17. exf5 {[%clk 0:01:49]}  Bxf5 {[%clk 0:02:34]} 18. f4 {[%clk 0:01:42]}  e4 {[%clk 0:02:28]} 19. Rde1 {[%clk 0:01:37]}  Nf6 {[%clk 0:02:16]} 20. Bd4 {[%clk 0:01:17]}  Nxd5 {[%clk 0:02:05]} 21. cxd5 {[%clk 0:01:18]}  Qd7 {[%clk 0:02:04]} 22. c4 {[%clk 0:01:14]}  Rae8 {[%clk 0:01:52]} 23. Re3 {[%clk 0:01:11]}  c5 {[%clk 0:01:40]} 24. Bb2 {[%clk 0:00:56]}  Rf7 {[%clk 0:01:37]} 25. h3 {[%clk 0:00:55]}  h5 {[%clk 0:01:36]} 26. Qf2 {[%clk 0:00:54]}  Qe7 {[%clk 0:01:32]} 27. Kh2 {[%clk 0:00:51]}  Ref8 {[%clk 0:01:25]} 28. Qg3 {[%clk 0:00:46]}  h4 {[%clk 0:01:24]} 29. Qe1 {[%clk 0:00:27]}  g5 {[%clk 0:01:23]} 30. Qe2 {[%clk 0:00:13]}  Bg6 {[%clk 0:01:23]} 31. f5 {[%clk 0:00:09]}  Rxf5 {[%clk 0:01:23]} 32. Rxf5 {[%clk 0:00:05]}  Rxf5 {[%clk 0:01:21]} 33. Rxe4 {[%clk 0:00:05]}  Qf8 {[%clk 0:01:18]} 34. Re7+ {[%clk 0:00:05]}  Rf7 {[%clk 0:01:18]} 35. Rxf7+ {[%clk 0:00:04]}  Qxf7 {[%clk 0:01:19]} 36. Qe3 {[%clk 0:00:03]}  Kh6 {[%clk 0:01:13]} 37. Qc3 {[%clk 0:00:02]}  Qf4+ {[%clk 0:01:11]} 38. Kh1 {[%clk 0:00:02]}  Qf8 {[%clk 0:01:11]} 0-1


[Site "https://www.chess.com"]

[Event "Titled Tuesday Blitz April 26 Early 2022"]
[White "Sawyer, Bradley"]
[Black "Wagner, Dennis"]
[WhiteFideId "2023784"]
[BlackFideId "24650684"]
[WhiteElo "2373"]
[BlackElo "2355"]
[Result "0-1"]
[Round "01"]
[TimeControl "180+1"]
[Date "2022.04.26"]
[WhiteClock "0:00:49"]
[BlackClock "0:00:26"]

1. c4 {[%clk 0:02:58]}  e5 {[%clk 0:02:58]} 2. g3 {[%clk 0:02:57]}  Nf6 {[%clk 0:02:57]} 3. Bg2 {[%clk 0:02:58]}  Bc5 {[%clk 0:02:57]} 4. Nc3 {[%clk 0:02:57]}  c6 {[%clk 0:02:56]} 5. e3 {[%clk 0:02:55]}  Bb6 {[%clk 0:02:57]} 6. Nge2 {[%clk 0:02:55]}  d5 {[%clk 0:02:54]} 7. cxd5 {[%clk 0:02:55]}  cxd5 {[%clk 0:02:54]} 8. d4 {[%clk 0:02:55]}  e4 {[%clk 0:02:52]} 9. O-O {[%clk 0:02:49]}  O-O {[%clk 0:02:52]} 10. f3 {[%clk 0:02:41]}  exf3 {[%clk 0:02:52]} 11. Bxf3 {[%clk 0:02:40]}  Bg4 {[%clk 0:02:47]} 12. Nf4 {[%clk 0:02:39]}  Be6 {[%clk 0:02:32]} 13. Nxe6 {[%clk 0:02:25]}  fxe6 {[%clk 0:02:32]} 14. b3 {[%clk 0:02:21]}  Nc6 {[%clk 0:02:31]} 15. Ba3 {[%clk 0:02:20]}  Rf7 {[%clk 0:02:32]} 16. Bg2 {[%clk 0:02:19]}  Qd7 {[%clk 0:02:24]} 17. Qd3 {[%clk 0:02:15]}  Re8 {[%clk 0:02:03]} 18. Na4 {[%clk 0:02:14]}  e5 {[%clk 0:01:59]} 19. Nxb6 {[%clk 0:02:14]}  axb6 {[%clk 0:01:59]} 20. dxe5 {[%clk 0:02:12]}  Nxe5 {[%clk 0:01:51]} 21. Qd4 {[%clk 0:01:53]}  Neg4 {[%clk 0:01:51]} 22. Rae1 {[%clk 0:01:47]}  Qe6 {[%clk 0:01:38]} 23. h3 {[%clk 0:01:43]}  Ne5 {[%clk 0:00:56]} 24. g4 {[%clk 0:01:28]}  Ne4 {[%clk 0:00:55]} 25. Bxe4 {[%clk 0:01:22]}  dxe4 {[%clk 0:00:56]} 26. Qxe4 {[%clk 0:01:23]}  Nf3+ {[%clk 0:00:52]} 27. Qxf3 {[%clk 0:01:21]}  Rxf3 {[%clk 0:00:51]} 28. Rxf3 {[%clk 0:01:22]}  h5 {[%clk 0:00:39]} 29. Rf4 {[%clk 0:01:18]}  Qd5 {[%clk 0:00:32]} 30. Kf2 {[%clk 0:00:49]}  Ra8 {[%clk 0:00:26]} 0-1


[Site "https://www.chess.com"]

[Event "Titled Tuesday Blitz April 26 Early 2022"]
[White "Schekachikhin, Maksim"]
[Black "De Souza, Cristiano Gomes"]
[WhiteFideId "24177830"]
[BlackFideId "2151758"]
[WhiteElo "2230"]
[BlackElo "2068"]
[Result "1-0"]
[Round "01"]
[TimeControl "180+1"]
[Date "2022.04.26"]
[WhiteClock "0:01:23"]
[BlackClock "0:00:24"]

1. d4 {[%clk 0:02:56]}  Nf6 {[%clk 0:02:59]} 2. c4 {[%clk 0:02:57]}  g6 {[%clk 0:02:57]} 3. Nc3 {[%clk 0:02:57]}  Bg7 {[%clk 0:02:58]} 4. e4 {[%clk 0:02:56]}  d6 {[%clk 0:02:58]} 5. Be2 {[%clk 0:02:55]}  O-O {[%clk 0:02:59]} 6. Nf3 {[%clk 0:02:55]}  e5 {[%clk 0:02:56]} 7. O-O {[%clk 0:02:55]}  Nc6 {[%clk 0:02:55]} 8. d5 {[%clk 0:02:55]}  Ne7 {[%clk 0:02:55]} 9. b4 {[%clk 0:02:53]}  Nh5 {[%clk 0:02:46]} 10. g3 {[%clk 0:02:49]}  f5 {[%clk 0:02:46]} 11. Ng5 {[%clk 0:02:49]}  Nf6 {[%clk 0:02:46]} 12. Bf3 {[%clk 0:02:49]}  h6 {[%clk 0:02:46]} 13. Ne6 {[%clk 0:02:49]}  Bxe6 {[%clk 0:02:45]} 14. dxe6 {[%clk 0:02:50]}  fxe4 {[%clk 0:02:46]} 15. Nxe4 {[%clk 0:02:49]}  Nxe4 {[%clk 0:02:42]} 16. Bxe4 {[%clk 0:02:50]}  c6 {[%clk 0:02:42]} 17. b5 {[%clk 0:02:31]}  d5 {[%clk 0:02:37]} 18. cxd5 {[%clk 0:02:32]}  cxd5 {[%clk 0:02:37]} 19. Ba3 {[%clk 0:02:32]}  dxe4 {[%clk 0:02:28]} 20. Qxd8 {[%clk 0:02:31]}  Rfxd8 {[%clk 0:02:28]} 21. Bxe7 {[%clk 0:02:32]}  Re8 {[%clk 0:02:29]} 22. Bc5 {[%clk 0:02:30]}  Rxe6 {[%clk 0:02:29]} 23. Rfe1 {[%clk 0:02:29]}  a6 {[%clk 0:02:29]} 24. bxa6 {[%clk 0:02:16]}  Rexa6 {[%clk 0:02:26]} 25. a3 {[%clk 0:02:17]}  Bf8 {[%clk 0:02:25]} 26. Bxf8 {[%clk 0:02:14]}  Kxf8 {[%clk 0:02:24]} 27. Rxe4 {[%clk 0:02:13]}  Rxa3 {[%clk 0:02:24]} 28. Rxa3 {[%clk 0:02:13]}  Rxa3 {[%clk 0:02:24]} 29. Rxe5 {[%clk 0:02:14]}  Ra6 {[%clk 0:02:23]} 30. Rb5 {[%clk 0:02:13]}  b6 {[%clk 0:02:21]} 31. Rd5 {[%clk 0:02:12]}  Ke7 {[%clk 0:02:20]} 32. Kg2 {[%clk 0:02:12]}  Ke6 {[%clk 0:02:20]} 33. Rd8 {[%clk 0:02:12]}  Ra1 {[%clk 0:02:16]} 34. g4 {[%clk 0:02:12]}  b5 {[%clk 0:02:13]} 35. Rh8 {[%clk 0:02:09]}  b4 {[%clk 0:02:11]} 36. Rxh6 {[%clk 0:01:56]}  Kf6 {[%clk 0:02:10]} 37. Rh8 {[%clk 0:01:55]}  b3 {[%clk 0:02:08]} 38. Rb8 {[%clk 0:01:55]}  Rb1 {[%clk 0:02:08]} 39. h4 {[%clk 0:01:54]}  Ke5 {[%clk 0:02:06]} 40. Kf3 {[%clk 0:01:54]}  b2 {[%clk 0:02:05]} 41. Rb4 {[%clk 0:01:48]}  Rh1 {[%clk 0:02:01]} 42. Rxb2 {[%clk 0:01:45]}  Rxh4 {[%clk 0:02:00]} 43. Rb5+ {[%clk 0:01:45]}  Kf6 {[%clk 0:02:00]} 44. Rb6+ {[%clk 0:01:44]}  Kg5 {[%clk 0:01:57]} 45. Rb5+ {[%clk 0:01:44]}  Kh6 {[%clk 0:01:55]} 46. Kf4 {[%clk 0:01:42]}  Rh1 {[%clk 0:01:46]} 47. Rb7 {[%clk 0:01:41]}  g5+ {[%clk 0:01:40]} 48. Kf5 {[%clk 0:01:41]}  Rf1 {[%clk 0:01:35]} 49. Rb6+ {[%clk 0:01:40]}  Kh7 {[%clk 0:01:33]} 50. Rb2 {[%clk 0:01:30]}  Kh6 {[%clk 0:01:32]} 51. Re2 {[%clk 0:01:30]}  Ra1 {[%clk 0:00:59]} 52. Re6+ {[%clk 0:01:29]}  Kg7 {[%clk 0:00:59]} 53. Kxg5 {[%clk 0:01:29]}  Ra5+ {[%clk 0:00:56]} 54. Kh4 {[%clk 0:01:28]}  Ra4 {[%clk 0:00:53]} 55. Kg3 {[%clk 0:01:27]}  Ra3+ {[%clk 0:00:53]} 56. f3 {[%clk 0:01:27]}  Ra1 {[%clk 0:00:53]} 57. f4 {[%clk 0:01:27]}  Ra3+ {[%clk 0:00:52]} 58. Kh4 {[%clk 0:01:27]}  Ra1 {[%clk 0:00:51]} 59. Kg5 {[%clk 0:01:26]}  Rh1 {[%clk 0:00:50]} 60. Re7+ {[%clk 0:01:26]}  Kf8 {[%clk 0:00:49]} 61. Ra7 {[%clk 0:01:27]}  Rf1 {[%clk 0:00:47]} 62. f5 {[%clk 0:01:26]}  Rb1 {[%clk 0:00:39]} 63. Kg6 {[%clk 0:01:25]}  Rb4 {[%clk 0:00:24]} 64. g5 {[%clk 0:01:23]} 1-0


[Site "https://www.chess.com"]

[Event "Titled Tuesday Blitz April 26 Early 2022"]
[White "Shandrygin, Nikita"]
[Black "Seifert, Henryk"]
[WhiteFideId "24198668"]
[BlackFideId "1100963"]
[WhiteElo "2323"]
[BlackElo "2120"]
[Result "0-1"]
[Round "01"]
[TimeControl "180+1"]
[Date "2022.04.26"]
[WhiteClock "0:02:34"]
[BlackClock "0:01:52"]

1. Nf3 {[%clk 0:03:00]}  d5 {[%clk 0:02:57]} 2. g3 {[%clk 0:03:01]}  c6 {[%clk 0:02:56]} 3. Bg2 {[%clk 0:03:02]}  Nf6 {[%clk 0:02:57]} 4. O-O {[%clk 0:03:02]}  Bf5 {[%clk 0:02:57]} 5. d4 {[%clk 0:03:03]}  e6 {[%clk 0:02:56]} 6. c4 {[%clk 0:03:03]}  Be7 {[%clk 0:02:52]} 7. Ne5 {[%clk 0:03:01]}  Nfd7 {[%clk 0:02:49]} 8. Qb3 {[%clk 0:03:00]}  Qb6 {[%clk 0:02:42]} 9. Nxd7 {[%clk 0:02:58]}  Nxd7 {[%clk 0:02:41]} 10. c5 {[%clk 0:02:59]}  Qxb3 {[%clk 0:02:34]} 11. axb3 {[%clk 0:03:00]}  a6 {[%clk 0:02:33]} 12. Nc3 {[%clk 0:02:59]}  O-O {[%clk 0:02:25]} 13. b4 {[%clk 0:02:55]}  e5 {[%clk 0:02:17]} 14. dxe5 {[%clk 0:02:46]}  Nxe5 {[%clk 0:02:18]} 15. e4 {[%clk 0:02:46]}  dxe4 {[%clk 0:02:13]} 16. Nxe4 {[%clk 0:02:47]}  Nd3 {[%clk 0:02:03]} 17. Rd1 {[%clk 0:02:37]}  Nxb4 {[%clk 0:01:53]} 18. Rd7 {[%clk 0:02:34]}  Bxd7 {[%clk 0:01:52]} 0-1


[Site "https://www.chess.com"]

[Event "Titled Tuesday Blitz April 26 Early 2022"]
[White "Sjugirov, Sanan"]
[Black "Buchenau, Frank"]
[WhiteFideId "4189302"]
[BlackFideId "4604350"]
[WhiteElo "2602"]
[BlackElo "2193"]
[Result "1-0"]
[Round "01"]
[TimeControl "180+1"]
[Date "2022.04.26"]
[WhiteClock "0:00:16"]
[BlackClock "0:00:01"]

1. d4 {[%clk 0:03:00]}  e6 {[%clk 0:02:59]} 2. c4 {[%clk 0:02:59]}  Nf6 {[%clk 0:03:00]} 3. Nf3 {[%clk 0:02:59]}  b6 {[%clk 0:02:59]} 4. g3 {[%clk 0:02:59]}  Bb7 {[%clk 0:03:00]} 5. Bg2 {[%clk 0:02:59]}  Be7 {[%clk 0:03:01]} 6. O-O {[%clk 0:02:59]}  O-O {[%clk 0:03:01]} 7. Nc3 {[%clk 0:02:59]}  Ne4 {[%clk 0:03:01]} 8. Bd2 {[%clk 0:03:00]}  f5 {[%clk 0:03:01]} 9. Ne5 {[%clk 0:02:54]}  Nxc3 {[%clk 0:02:56]} 10. Bxc3 {[%clk 0:02:55]}  Bxg2 {[%clk 0:02:56]} 11. Kxg2 {[%clk 0:02:55]}  d6 {[%clk 0:02:55]} 12. Nd3 {[%clk 0:02:52]}  Qd7 {[%clk 0:02:45]} 13. Re1 {[%clk 0:02:33]}  Nc6 {[%clk 0:02:43]} 14. d5 {[%clk 0:02:30]}  Nd8 {[%clk 0:02:42]} 15. e4 {[%clk 0:02:24]}  Bf6 {[%clk 0:01:45]} 16. Bxf6 {[%clk 0:02:17]}  Rxf6 {[%clk 0:01:44]} 17. e5 {[%clk 0:02:03]}  dxe5 {[%clk 0:01:37]} 18. Nxe5 {[%clk 0:02:04]}  Qd6 {[%clk 0:01:36]} 19. Qf3 {[%clk 0:01:55]}  exd5 {[%clk 0:01:32]} 20. Rad1 {[%clk 0:01:55]}  c6 {[%clk 0:01:05]} 21. cxd5 {[%clk 0:01:53]}  c5 {[%clk 0:01:04]} 22. Nc4 {[%clk 0:01:49]}  Qd7 {[%clk 0:01:02]} 23. d6 {[%clk 0:01:48]}  Qc6 {[%clk 0:00:44]} 24. d7 {[%clk 0:01:39]}  Qxf3+ {[%clk 0:00:36]} 25. Kxf3 {[%clk 0:01:40]}  Nc6 {[%clk 0:00:21]} 26. Re8+ {[%clk 0:01:29]}  Rf8 {[%clk 0:00:21]} 27. Rxa8 {[%clk 0:01:21]}  Rxa8 {[%clk 0:00:22]} 28. Rd6 {[%clk 0:01:17]}  Nd4+ {[%clk 0:00:20]} 29. Kf4 {[%clk 0:01:11]}  Rd8 {[%clk 0:00:20]} 30. b4 {[%clk 0:00:48]}  Kf7 {[%clk 0:00:20]} 31. bxc5 {[%clk 0:00:48]}  bxc5 {[%clk 0:00:20]} 32. Ne5+ {[%clk 0:00:47]}  Ke7 {[%clk 0:00:20]} 33. Ra6 {[%clk 0:00:46]}  g6 {[%clk 0:00:12]} 34. Rxa7 {[%clk 0:00:41]}  Ke6 {[%clk 0:00:08]} 35. Nf3 {[%clk 0:00:25]}  Rxd7 {[%clk 0:00:07]} 36. Rxd7 {[%clk 0:00:18]}  Kxd7 {[%clk 0:00:06]} 37. Nxd4 {[%clk 0:00:18]}  cxd4 {[%clk 0:00:06]} 38. Kf3 {[%clk 0:00:18]}  Kc6 {[%clk 0:00:06]} 39. Ke2 {[%clk 0:00:18]}  Kc5 {[%clk 0:00:05]} 40. Kd3 {[%clk 0:00:19]}  Kd5 {[%clk 0:00:02]} 41. f4 {[%clk 0:00:17]}  Kc5 {[%clk 0:00:01]} 42. a4 {[%clk 0:00:16]} 1-0


[Site "https://www.chess.com"]

[Event "Titled Tuesday Blitz April 26 Early 2022"]
[White "Toncheva, Nadya"]
[Black "Fernandez, Daniel Howard"]
[WhiteFideId "2924056"]
[BlackFideId "5801605"]
[WhiteElo "1884"]
[BlackElo "2466"]
[Result "0-1"]
[Round "01"]
[TimeControl "180+1"]
[Date "2022.04.26"]
[WhiteClock "0:00:04"]
[BlackClock "0:00:03"]

1. e4 {[%clk 0:03:00]}  e5 {[%clk 0:02:58]} 2. Nf3 {[%clk 0:03:00]}  Nc6 {[%clk 0:02:53]} 3. Bc4 {[%clk 0:03:00]}  Nf6 {[%clk 0:02:51]} 4. d3 {[%clk 0:02:59]}  Bc5 {[%clk 0:02:49]} 5. O-O {[%clk 0:02:57]}  d6 {[%clk 0:02:41]} 6. c3 {[%clk 0:02:57]}  a6 {[%clk 0:02:41]} 7. Bb3 {[%clk 0:02:56]}  Ba7 {[%clk 0:02:40]} 8. Nbd2 {[%clk 0:02:55]}  O-O {[%clk 0:02:39]} 9. Re1 {[%clk 0:02:54]}  Nh5 {[%clk 0:02:34]} 10. Nf1 {[%clk 0:02:47]}  Qf6 {[%clk 0:02:34]} 11. Be3 {[%clk 0:02:22]}  Nf4 {[%clk 0:02:31]} 12. Ng3 {[%clk 0:02:11]}  Bg4 {[%clk 0:02:27]} 13. d4 {[%clk 0:01:34]}  Nh3+ {[%clk 0:01:52]} 14. Kf1 {[%clk 0:00:48]}  exd4 {[%clk 0:01:29]} 15. cxd4 {[%clk 0:00:40]}  Bxf3 {[%clk 0:01:29]} 16. gxf3 {[%clk 0:00:32]}  Nxd4 {[%clk 0:01:25]} 17. Kg2 {[%clk 0:00:22]}  Nf4+ {[%clk 0:01:07]} 18. Kh1 {[%clk 0:00:18]}  g6 {[%clk 0:00:54]} 19. Rg1 {[%clk 0:00:17]}  Kh8 {[%clk 0:00:48]} 20. Rc1 {[%clk 0:00:17]}  c6 {[%clk 0:00:44]} 21. Rc4 {[%clk 0:00:09]}  Nfe6 {[%clk 0:00:33]} 22. f4 {[%clk 0:00:07]}  Nxb3 {[%clk 0:00:16]} 23. axb3 {[%clk 0:00:05]}  Nxf4 {[%clk 0:00:09]} 24. Qf3 {[%clk 0:00:04]}  Nd5 {[%clk 0:00:08]} 25. Qe2 {[%clk 0:00:02]}  Nxe3 {[%clk 0:00:08]} 26. fxe3 {[%clk 0:00:03]}  Rae8 {[%clk 0:00:07]} 27. Rf1 {[%clk 0:00:03]}  Qg5 {[%clk 0:00:07]} 28. Rf3 {[%clk 0:00:03]}  h5 {[%clk 0:00:06]} 29. Rc1 {[%clk 0:00:03]}  Re5 {[%clk 0:00:06]} 30. Rcf1 {[%clk 0:00:03]}  Re7 {[%clk 0:00:04]} 31. Qf2 {[%clk 0:00:03]}  h4 {[%clk 0:00:01]} 32. Ne2 {[%clk 0:00:03]}  Qe5 {[%clk 0:00:02]} 33. Rf4 {[%clk 0:00:03]}  Kg7 {[%clk 0:00:01]} 34. Rxh4 {[%clk 0:00:03]}  Rh8 {[%clk 0:00:01]} 35. Rxh8 {[%clk 0:00:03]}  Kxh8 {[%clk 0:00:02]} 36. Qh4+ {[%clk 0:00:03]}  Kg7 {[%clk 0:00:02]} 37. Nf4 {[%clk 0:00:04]}  Qxe4+ {[%clk 0:00:02]} 38. Kg1 {[%clk 0:00:04]}  Bxe3+ {[%clk 0:00:03]} 0-1


[Site "https://www.chess.com"]

[Event "Titled Tuesday Blitz April 26 Early 2022"]
[White "Unver, Cumali"]
[Black "Koellner, Ruben Gideon"]
[WhiteFideId "6304940"]
[BlackFideId "12993093"]
[WhiteElo "2013"]
[BlackElo "2557"]
[Result "0-1"]
[Round "01"]
[TimeControl "180+1"]
[Date "2022.04.26"]
[WhiteClock "0:00:01"]
[BlackClock "0:00:45"]

1. e4 {[%clk 0:02:58]}  d6 {[%clk 0:03:00]} 2. d4 {[%clk 0:02:57]}  Nf6 {[%clk 0:03:00]} 3. Nc3 {[%clk 0:02:57]}  e5 {[%clk 0:03:00]} 4. dxe5 {[%clk 0:02:57]}  dxe5 {[%clk 0:03:01]} 5. Qxd8+ {[%clk 0:02:57]}  Kxd8 {[%clk 0:03:02]} 6. Bg5 {[%clk 0:02:57]}  Be6 {[%clk 0:03:02]} 7. f4 {[%clk 0:02:55]}  exf4 {[%clk 0:02:58]} 8. e5 {[%clk 0:02:53]}  h6 {[%clk 0:02:58]} 9. Bh4 {[%clk 0:02:53]}  g5 {[%clk 0:02:58]} 10. exf6 {[%clk 0:02:53]}  gxh4 {[%clk 0:02:59]} 11. Nf3 {[%clk 0:02:45]}  Nd7 {[%clk 0:02:58]} 12. O-O-O {[%clk 0:02:32]}  Bc5 {[%clk 0:02:54]} 13. Nxh4 {[%clk 0:02:27]}  Kc8 {[%clk 0:02:48]} 14. Bd3 {[%clk 0:02:24]}  Nxf6 {[%clk 0:02:45]} 15. Bf5 {[%clk 0:02:23]}  Rg8 {[%clk 0:02:33]} 16. Bxe6+ {[%clk 0:02:21]}  fxe6 {[%clk 0:02:34]} 17. Kb1 {[%clk 0:01:56]}  Bd6 {[%clk 0:02:31]} 18. Rhf1 {[%clk 0:01:51]}  Ng4 {[%clk 0:02:24]} 19. Rfe1 {[%clk 0:01:31]}  Ne3 {[%clk 0:02:23]} 20. Rd2 {[%clk 0:01:28]}  Kd7 {[%clk 0:02:21]} 21. g3 {[%clk 0:01:20]}  Ke7 {[%clk 0:02:11]} 22. gxf4 {[%clk 0:01:16]}  Bxf4 {[%clk 0:02:12]} 23. Rf2 {[%clk 0:01:14]}  Raf8 {[%clk 0:02:06]} 24. a3 {[%clk 0:01:11]}  Bg5 {[%clk 0:01:56]} 25. Rxf8 {[%clk 0:01:07]}  Kxf8 {[%clk 0:01:55]} 26. Nf3 {[%clk 0:01:06]}  Bf4 {[%clk 0:01:48]} 27. Ne2 {[%clk 0:00:52]}  Ng2 {[%clk 0:01:47]} 28. Nxf4 {[%clk 0:00:31]}  Nxe1 {[%clk 0:01:39]} 29. Nxe1 {[%clk 0:00:31]}  Rg1 {[%clk 0:01:38]} 30. Ng2 {[%clk 0:00:32]}  Rh1 {[%clk 0:01:35]} 31. Kc1 {[%clk 0:00:32]}  Rxh2 {[%clk 0:01:35]} 32. Kd2 {[%clk 0:00:32]}  Ke7 {[%clk 0:01:35]} 33. Ke3 {[%clk 0:00:32]}  Rh3+ {[%clk 0:01:33]} 34. Kf4 {[%clk 0:00:31]}  Rh1 {[%clk 0:01:29]} 35. Nd3 {[%clk 0:00:28]}  Rf1+ {[%clk 0:01:26]} 36. Kg4 {[%clk 0:00:25]}  Kf6 {[%clk 0:01:19]} 37. Ne3 {[%clk 0:00:21]}  Rg1+ {[%clk 0:01:18]} 38. Kf4 {[%clk 0:00:18]}  Rh1 {[%clk 0:01:16]} 39. Ng4+ {[%clk 0:00:16]}  Ke7 {[%clk 0:01:16]} 40. Nde5 {[%clk 0:00:15]}  h5 {[%clk 0:01:14]} 41. Nf2 {[%clk 0:00:15]}  Rc1 {[%clk 0:01:10]} 42. c3 {[%clk 0:00:10]}  Rc2 {[%clk 0:01:09]} 43. Ned3 {[%clk 0:00:10]}  Kf6 {[%clk 0:00:57]} 44. Ne4+ {[%clk 0:00:10]}  Kg6 {[%clk 0:00:56]} 45. Ne5+ {[%clk 0:00:09]}  Kg7 {[%clk 0:00:56]} 46. Nd3 {[%clk 0:00:07]}  Rg2 {[%clk 0:00:54]} 47. Ng5 {[%clk 0:00:05]}  Rg4+ {[%clk 0:00:50]} 48. Ke5 {[%clk 0:00:03]}  Rxg5+ {[%clk 0:00:50]} 49. Kxe6 {[%clk 0:00:03]}  h4 {[%clk 0:00:47]} 50. Nf4 {[%clk 0:00:02]}  Rg4 {[%clk 0:00:47]} 51. Nh3 {[%clk 0:00:01]}  Rg3 {[%clk 0:00:47]} 52. Nf4 {[%clk 0:00:01]}  Kh6 {[%clk 0:00:46]} 53. Kd7 {[%clk 0:00:01]}  Kg5 {[%clk 0:00:45]} 0-1


[Site "https://www.chess.com"]

[Event "Titled Tuesday Blitz April 26 Early 2022"]
[White "Vokhidov, Shamsiddin"]
[Black "Nozdrachev, Leonid"]
[WhiteFideId "14204223"]
[BlackFideId "24113433"]
[WhiteElo "2611"]
[BlackElo "2242"]
[Result "1-0"]
[Round "01"]
[TimeControl "180+1"]
[Date "2022.04.26"]
[WhiteClock "0:01:50"]
[BlackClock "0:00:09"]

1. e4 {[%clk 0:03:00]}  c6 {[%clk 0:02:57]} 2. d4 {[%clk 0:03:01]}  d5 {[%clk 0:02:57]} 3. e5 {[%clk 0:03:01]}  Bf5 {[%clk 0:02:56]} 4. h4 {[%clk 0:03:01]}  h5 {[%clk 0:02:55]} 5. Bd3 {[%clk 0:03:02]}  Bxd3 {[%clk 0:02:54]} 6. Qxd3 {[%clk 0:03:02]}  Qa5+ {[%clk 0:02:54]} 7. Nd2 {[%clk 0:03:03]}  e6 {[%clk 0:02:52]} 8. Nf3 {[%clk 0:03:03]}  Nh6 {[%clk 0:02:48]} 9. O-O {[%clk 0:03:03]}  Be7 {[%clk 0:02:47]} 10. Nb3 {[%clk 0:03:03]}  Qa6 {[%clk 0:02:44]} 11. Qd1 {[%clk 0:03:03]}  Nf5 {[%clk 0:02:43]} 12. Bg5 {[%clk 0:02:58]}  Bxg5 {[%clk 0:02:37]} 13. Nc5 {[%clk 0:02:58]}  Qb6 {[%clk 0:02:08]} 14. hxg5 {[%clk 0:02:58]}  Nd7 {[%clk 0:02:06]} 15. Nxd7 {[%clk 0:02:56]}  Kxd7 {[%clk 0:02:07]} 16. Qd2 {[%clk 0:02:54]}  Rac8 {[%clk 0:01:51]} 17. a4 {[%clk 0:02:54]}  Kc7 {[%clk 0:01:48]} 18. a5 {[%clk 0:02:52]}  Qa6 {[%clk 0:01:46]} 19. b3 {[%clk 0:02:40]}  g6 {[%clk 0:01:45]} 20. c4 {[%clk 0:02:35]}  dxc4 {[%clk 0:01:41]} 21. bxc4 {[%clk 0:02:36]}  Qxc4 {[%clk 0:01:41]} 22. Rfc1 {[%clk 0:02:36]}  Qa6 {[%clk 0:01:34]} 23. d5 {[%clk 0:02:33]}  exd5 {[%clk 0:01:20]} 24. Qxd5 {[%clk 0:02:34]}  Rhf8 {[%clk 0:01:20]} 25. e6 {[%clk 0:02:17]}  Kb8 {[%clk 0:01:13]} 26. Qe5+ {[%clk 0:02:14]}  Ka8 {[%clk 0:01:13]} 27. exf7 {[%clk 0:02:14]}  Rxf7 {[%clk 0:01:12]} 28. Qe6 {[%clk 0:02:15]}  Rcf8 {[%clk 0:01:00]} 29. Qxg6 {[%clk 0:02:14]}  h4 {[%clk 0:00:52]} 30. Rd1 {[%clk 0:02:12]}  Qc4 {[%clk 0:00:35]} 31. Rac1 {[%clk 0:02:05]}  Qb3 {[%clk 0:00:31]} 32. a6 {[%clk 0:02:04]}  h3 {[%clk 0:00:27]} 33. Rb1 {[%clk 0:01:56]}  Qc2 {[%clk 0:00:14]} 34. Qxf7 {[%clk 0:01:52]}  h2+ {[%clk 0:00:09]} 35. Kh1 {[%clk 0:01:50]} 1-0


[Site "https://www.chess.com"]

[Event "Titled Tuesday Blitz April 26 Early 2022"]
[White "Vovk, Orest"]
[Black "Cagara, Paulina"]
[WhiteFideId "14113490"]
[BlackFideId "1124870"]
[WhiteElo "2203"]
[BlackElo "1780"]
[Result "1-0"]
[Round "01"]
[TimeControl "180+1"]
[Date "2022.04.26"]
[WhiteClock "0:01:33"]
[BlackClock "0:01:05"]

1. d3 {[%clk 0:02:55]}  f5 {[%clk 0:02:58]} 2. Nd2 {[%clk 0:02:55]}  g6 {[%clk 0:02:57]} 3. e4 {[%clk 0:02:55]}  fxe4 {[%clk 0:02:57]} 4. dxe4 {[%clk 0:02:55]}  Bg7 {[%clk 0:02:57]} 5. Bc4 {[%clk 0:02:55]}  e6 {[%clk 0:02:56]} 6. Ngf3 {[%clk 0:02:55]}  Ne7 {[%clk 0:02:55]} 7. h4 {[%clk 0:02:54]}  d5 {[%clk 0:02:53]} 8. Bb3 {[%clk 0:02:53]}  c6 {[%clk 0:02:51]} 9. h5 {[%clk 0:02:52]}  Na6 {[%clk 0:02:43]} 10. h6 {[%clk 0:02:49]}  Bf8 {[%clk 0:02:31]} 11. Ng5 {[%clk 0:02:35]}  dxe4 {[%clk 0:02:17]} 12. Ndxe4 {[%clk 0:02:25]}  Qxd1+ {[%clk 0:02:16]} 13. Kxd1 {[%clk 0:02:26]}  Nd5 {[%clk 0:02:11]} 14. c4 {[%clk 0:02:22]}  Ndc7 {[%clk 0:02:00]} 15. Nf6+ {[%clk 0:02:18]}  Ke7 {[%clk 0:02:00]} 16. Nge4 {[%clk 0:02:18]}  Nc5 {[%clk 0:01:53]} 17. Bg5 {[%clk 0:02:14]}  Nxe4 {[%clk 0:01:52]} 18. Nxe4+ {[%clk 0:02:14]}  Kf7 {[%clk 0:01:51]} 19. Rh3 {[%clk 0:02:12]}  e5 {[%clk 0:01:43]} 20. Rf3+ {[%clk 0:02:11]}  Bf5 {[%clk 0:01:41]} 21. g4 {[%clk 0:02:05]}  Be7 {[%clk 0:01:26]} 22. c5+ {[%clk 0:01:57]}  Nd5 {[%clk 0:01:24]} 23. gxf5 {[%clk 0:01:56]}  gxf5 {[%clk 0:01:14]} 24. Bxe7 {[%clk 0:01:54]}  Kxe7 {[%clk 0:01:13]} 25. Rxf5 {[%clk 0:01:54]}  Rad8 {[%clk 0:01:10]} 26. Rxe5+ {[%clk 0:01:44]}  Kf7 {[%clk 0:01:05]} 27. Kc2 {[%clk 0:01:33]} 1-0


[Site "https://www.chess.com"]